[Event "2nd Cambridge Open 2024"]
[Site "Cambridge"]
[Date "2024.02.24"]
[Round "8.2"]
[White "Adams, Michael"]
[Black "Fernandez, Daniel Howard"]
[Result "1-0"]
[ECO "B12"]
[WhiteElo "2674"]
[BlackElo "2525"]
[Annotator "TA"]
[PlyCount "71"]
[EventDate "2024.02.18"]
[EventType "swiss"]
[EventCountry "ENG"]
[SourceTitle "playchess.com"]
[Source "ChessBase"]
[SourceQuality "1"]
[TimeControl "5400+30"]

{[%evp 12,71,16,18,29,13,27,0,13,0,45,43,139,126,176,173,166,166,214,216,194,195,185,191,267,268,259,251,262,238,248,280,289,280,281,284,302,177,189,183,205,216,214,218,213,217,203,212,234,229,289,205,256,259,350,399,406,396,389,381,345,325]} 1. e4 {[%emt 0:00:04]} c6 {[%emt 0:00:09][%cal Bc7c6,Bc6c5][%mdl 32]} 2. d4 {[%emt 0:00:44]} d5 {[%emt 0:00:02]} 3. e5 {[%emt 0:00:05]} Bf5 {[%emt 0:00:06]} 4. Nf3 {[%emt 0:00:10]} e6 {[%emt 0:00:02]} 5. Be2 {[%emt 0:00:06]} c5 {[%emt 0:00:05]} 6. O-O {[%emt 0:00:23]} Nc6 {[%emt 0:02:03]} 7. c3 {[%emt 0:00:16]} a6 {[%emt 0:02:02]} 8. Be3 {[%emt 0:03:09]} Qb6 {[%emt 0:09:45]} 9. Qd2 {[%emt 0:07:01]} Bg4 {[%emt 0:04:09] The position is equal.} 10. Rd1 {[%emt 0:03:13]} h5 {[%emt 0:11:30]} 11. c4 {[%emt 0:09:57] Strongly threatening cxd5.} dxc4 {[%emt 0:04:42] [#]} ({Better is} 11... cxd4 $14 12. Nxd4 Bxe2 13. Nxe2 Bc5) 12. Na3 $1 $16 {[%emt 0:06:01]} Qa5 {[%emt 0:14:47]} (12... Qc7 $16) 13. dxc5 $18 {[%emt 0:12:17]} (13. Nxc4 $6 Qxd2 14. Rxd2 cxd4 15. Bxd4 (15. Nxd4 Bxe2 16. Rxe2 Nxd4 $16) 15... O-O-O $16) 13... Qxd2 {[%emt 0:05:30]} 14. Rxd2 {[%emt 0:00:07]} c3 {[%emt 0:00:05]} (14... Rd8 $142) 15. bxc3 {[%emt 0:00:25] Nc4 would now be deadly.} Nge7 {[%emt 0:00:03]} 16. Nc4 {[%emt 0:03:11] Nd6+ is the strong threat.} Nd5 {[%emt 0:03:31]} 17. Bd4 {[%emt 0:00:53]} f6 {[%emt 0:00:55]} (17... h4 {was called for.} 18. h3 Bh5 19. Nd6+ (19. Nxh4 $2 Bxe2 $19) 19... Bxd6 20. exd6 (20. cxd6 Kd7 $18) 20... O-O-O) 18. h3 {[%emt 0:04:26]} Bf5 {[%emt 0:02:41]} 19. Re1 {[%emt 0:05:46]} h4 {[%emt 0:06:22]} 20. Bd1 {[%emt 0:04:36]} Be7 {[%emt 0:04:28]} 21. Bb3 {[%emt 0:01:10]} Kf7 {[%emt 0:00:25]} 22. Nd6+ {[%emt 0:02:38]} Bxd6 {[%emt 0:00:01]} 23. cxd6 {[%emt 0:00:07]} (23. exd6 Rab8 24. Bxd5 exd5 $18) 23... Rad8 {[%emt 0:02:34]} 24. Bxd5 {[%emt 0:07:37]} (24. c4 $142 Nf4 25. Bb6) 24... exd5 {[%emt 0:00:03] Black is weak on the dark squares} 25. Bb6 {[%emt 0:00:06][%csl LRd5,LRd8]} Rd7 {[%emt 0:00:07]} 26. exf6 {[%emt 0:01:41]} ({Don't take} 26. Rxd5 Be6 27. Rd2 Rh5 $18) 26... gxf6 {[%emt 0:01:00]} 27. Rxd5 {[%emt 0:00:07]} Be6 {[%emt 0:00:04]} 28. Rd2 {[%emt 0:00:17]} Rh5 {[%emt 0:00:01][%cal Bh8h5,Bh5c5,Bc5c3][%mdl 32]} 29. Bc7 {[%emt 0:02:11]} b5 {[%emt 0:01:37]} 30. a3 {[%emt 0:00:42]} Rc5 {[%emt 0:00:27]} 31. Nd4 {[%emt 0:02:50]} (31. Nxh4 $6 Rxc3 32. Rde2 Nd4 $18) 31... Nxd4 {[%emt 0:02:01]} 32. Rxd4 {[%emt 0:02:18]} Rxc3 {[%emt 0:00:05]} 33. Rde4 {[%emt 0:00:32]} ({Resist} 33. Rxh4 Bf5 34. Rf4 Bg6) 33... Bf5 {[%emt 0:00:35]} 34. Re7+ {[%emt 0:00:27]} (34. Rxh4 Rxa3 35. Rf4 Kg6 $18) 34... Kf8 {[%emt 0:00:02] [#]} 35. Re8+ {[%emt 0:02:49]} Kf7 {[%emt 0:00:02]} 36. R1e7+ {[%emt 0:00:24] Black did not feel at home in the position after the opening.   Weighted Error Value: White=0.13 (very precise) /Black=0.23 (precise) .  Mistake:       	White=1     	Black=4      Inaccurate:     	White=1     	Black=2      OK:         	White=16    	Black=8      Best:        	White=2     	Black=1      Strong:       	White=1     	---} 1-0

[Event "2nd Cambridge Open 2024"]
[Site "Cambridge"]
[Date "2024.02.24"]
[Round "8.3"]
[White "Sonis, Francesco"]
[Black "Wadsworth, Matthew J"]
[Result "1/2-1/2"]
[ECO "D12"]
[WhiteElo "2573"]
[BlackElo "2450"]
[Annotator "TA"]
[PlyCount "77"]
[EventDate "2024.02.18"]
[EventType "swiss"]
[EventCountry "ENG"]
[SourceTitle "playchess.com"]
[Source "ChessBase"]
[SourceQuality "1"]
[TimeControl "5400+30"]

{[%evp 17,77,24,38,31,37,24,26,26,29,0,29,0,18,2,55,24,39,15,53,43,40,34,49,59,120,56,79,84,88,81,102,100,115,76,81,32,12,0,0,7,28,18,15,13,16,0,0,3,8,8,8,7,8,0,0,0,0,0,0,0,0,0]} 1. d4 {[%emt 0:00:58]} d5 {[%emt 0:00:11]} 2. c4 {[%emt 0:00:07]} c6 {[%emt 0:00:06]} 3. Nf3 {[%emt 0:00:04]} Nf6 {[%emt 0:00:14]} 4. e3 {[%emt 0:00:06]} Bf5 {[%emt 0:00:18]} 5. Nc3 {[%emt 0:00:17]} e6 {[%emt 0:00:32]} 6. Nh4 {[%emt 0:00:20]} Be4 {[%emt 0:00:11]} 7. f3 {[%emt 0:00:11]} Bg6 {[%emt 0:00:11]} 8. Qb3 {[%emt 0:00:20]} Qb6 {[%emt 0:00:43]} 9. Nxg6 {[%emt 0:00:30]} hxg6 {[%emt 0:00:08]} 10. Bd2 {[%emt 0:06:55]} Nbd7 {[%emt 0:00:24]} 11. O-O-O {[%emt 0:00:10]} Qxb3 {[%emt 0:00:17]} 12. axb3 {[%emt 0:00:04] White has an edge.} O-O-O {[%emt 0:00:15]} 13. Kc2 {[%emt 0:00:46]} a6 {[%emt 0:03:53]} 14. Bd3 {[%emt 0:00:14]} Bd6 {[%emt 0:07:04]} 15. h3 {[%emt 0:00:05]} Kb8 {[%emt 0:00:23]} (15... e5 $11) 16. Be1 {[%emt 0:06:04]} Bc7 {[%emt 0:05:27]} 17. Bf2 {[%emt 0:00:16]} c5 {[%emt 0:06:30]} 18. dxc5 {[%emt 0:07:38]} Nxc5 {[%emt 0:00:33]} 19. Be2 {[%emt 0:00:05]} dxc4 {[%emt 0:03:46]} 20. bxc4 {[%emt 0:00:11]} e5 {[%emt 0:02:11]} (20... a5 $14) 21. h4 {[%emt 0:11:52]} (21. Rxd8+ $16 Rxd8 22. g4) 21... Ne6 {[%emt 0:05:07]} 22. g4 {[%emt 0:06:27]} Rxd1 {[%emt 0:02:44]} 23. Rxd1 {[%emt 0:00:06]} g5 {[%emt 0:01:32]} 24. h5 {[%emt 0:01:43]} g6 {[%emt 0:09:27]} 25. hxg6 {[%emt 0:00:21]} fxg6 {[%emt 0:00:37][%cal Oe5e4]} 26. Bd3 {[%emt 0:08:03]} (26. b4 $16) 26... Rh3 $14 {[%emt 0:05:11]} 27. Kd2 {[%emt 0:11:25] Black must now prevent Ke2.} Ba5 {[%emt 0:08:48]} 28. Bxg6 {[%emt 0:13:19]} e4 {[%emt 0:06:38]} 29. Bxe4 {[%emt 0:06:50]} ({Much worse is} 29. fxe4 Nxg4 (29... Bxc3+ 30. Kxc3 Nxg4 31. Rd6 $11) 30. Bg1 Rg3 $11) 29... Nxe4+ {[%emt 0:00:47] The position is equal.} 30. fxe4 {[%emt 0:00:03]} Nc5 {[%emt 0:00:31]} 31. Ke2 {[%emt 0:08:13] [#] aiming for Rd5.} Bxc3 {[%emt 0:02:16]} 32. bxc3 {[%emt 0:00:01]} Nxe4 $11 {[%emt 0:00:20][%mdl 4096] Endgame. KRB-KRN} 33. Be1 {[%emt 0:00:05]} Nf6 {[%emt 0:02:22] Wards off Rd5} 34. Rd4 {[%emt 0:00:28]} a5 {[%emt 0:01:28]} 35. c5 {[%emt 0:00:04]} Kc8 $1 {[%emt 0:03:26]} 36. Ra4 {[%emt 0:02:14]} Kd7 {[%emt 0:01:54]} 37. Rd4+ {[%emt 0:02:01]} Kc8 {[%emt 0:02:33]} 38. Ra4 {[%emt 0:04:07]} Kd7 {[%emt 0:02:15]} 39. Rd4+ {[%emt 0:01:19] Weighted Error Value: White=0.14 (very precise) /Black=0.13 (very precise) .  Mistake:       	White=2     	Black=2      Inaccurate:     	White=4     	Black=2      OK:         	White=6     	Black=10     Best:        	---       	Black=1      Strong:       	---       	Black=1} 1/2-1/2

[Event "2nd Cambridge Open 2024"]
[Site "Cambridge"]
[Date "2024.02.24"]
[Round "8.4"]
[White "Roberson, Peter T"]
[Black "Gasanov, Eldar"]
[Result "1-0"]
[ECO "B47"]
[WhiteElo "2424"]
[BlackElo "2487"]
[Annotator "TA"]
[PlyCount "67"]
[EventDate "2024.02.18"]
[EventType "swiss"]
[EventCountry "ENG"]
[SourceTitle "playchess.com"]
[Source "ChessBase"]
[SourceQuality "1"]
[TimeControl "5400+30"]

{[%evp 9,67,0,43,26,16,3,21,10,16,19,29,-19,11,23,15,0,39,15,58,53,64,26,98,47,103,102,151,96,162,79,116,110,114,116,95,110,134,138,145,141,144,144,187,196,197,180,330,347,346,334,482,461,1028,947,29994,29995,29995,29996,29996,29996]} 1. e4 {[%emt 0:00:02]} c5 {[%emt 0:00:29]} 2. Nf3 {[%emt 0:00:06]} Nc6 {[%emt 0:01:40]} 3. d4 {[%emt 0:00:24]} cxd4 {[%emt 0:00:06]} 4. Nxd4 {[%emt 0:00:03]} e6 {[%emt 0:03:19]} 5. Nc3 {[%emt 0:00:31]} Qc7 {[%emt 0:00:12]} 6. Ncb5 {[%emt 0:02:57]} Qb8 {[%emt 0:01:52]} 7. Bd3 {[%emt 0:00:07]} Nf6 {[%emt 0:02:34]} 8. O-O {[%emt 0:00:26] The position is equal.} Be7 {[%emt 0:03:59]} 9. Qe2 {[%emt 0:03:37]} Ne5 {[%emt 0:05:47]} 10. c4 {[%emt 0:12:38]} (10. h3 $142) 10... Nxd3 {[%emt 0:02:47]} 11. Qxd3 {[%emt 0:01:27]} O-O {[%emt 0:00:25]} 12. Nc3 {[%emt 0:03:49]} d6 {[%emt 0:05:53]} 13. Bg5 {[%emt 0:01:38]} Rd8 {[%emt 0:05:47]} 14. f4 {[%emt 0:03:07][%cal Bf2f4,Bf4f5][%mdl 32]} Bd7 {[%emt 0:09:56]} 15. Rae1 {[%emt 0:05:48] aiming for e5.} Be8 {[%emt 0:14:40]} (15... h6 $11 {keeps the balance.} 16. Bh4 b6) 16. Kh1 {[%emt 0:05:31]} (16. f5 $16 Qc8 17. b3) 16... Qc7 {[%emt 0:03:09]} (16... h6 $14) 17. f5 $16 {[%emt 0:05:15]} Bd7 {[%emt 0:08:00]} ({Black should play} 17... Qc5) 18. b3 {[%emt 0:08:52]} (18. fxe6 $142 fxe6 19. Ndb5) 18... a6 {[%emt 0:01:36]} (18... Rf8 $16) 19. Qh3 {[%emt 0:11:12]} (19. Qg3 $18 {Hoping for fxe6.} Nh5 20. Qg4) 19... Qc5 {[%emt 0:02:32]} 20. fxe6 {[%emt 0:04:31]} fxe6 {[%emt 0:00:50]} 21. e5 {[%emt 0:04:09]} dxe5 {[%emt 0:16:16]} 22. Nxe6 {[%emt 0:04:07] And now Bxf6 would win. White has more active pieces.} Qd6 {[%emt 0:02:53]} 23. Bxf6 {[%emt 0:00:39]} Bxe6 {[%emt 0:00:23]} 24. Bxe7 {[%emt 0:09:10]} (24. Rxe5 $2 Bxh3 25. Rxe7 Rd7 $19 (25... gxf6 $2 26. Nd5 $19)) 24... Qxe7 {[%emt 0:00:09]} 25. Rxe5 {[%emt 0:00:52]} Re8 {[%emt 0:02:05] [#]} 26. Qg3 $40 {[%emt 0:07:00][%mdl 128] Nd5 is the strong threat. Black is in trouble.} Qd7 {[%emt 0:02:56]} 27. h3 {[%emt 0:01:03]} Bf7 {[%emt 0:00:58]} (27... Kh8 {was necessary.} 28. Rd1 Qc6) 28. Rd1 $18 {[%emt 0:02:49][%cal Bf1d1,Bd1d6,Bd6f6][%mdl 32]} Qc6 {[%emt 0:00:30]} 29. Rd6 {[%emt 0:00:24]} Qc8 {[%emt 0:01:07]} (29... Qc7 $142 30. Rg5 Kh8 31. Rxg7 Re6) 30. Rg5 {[%emt 0:01:23]} g6 {[%emt 0:00:35]} (30... Kh8 $142 31. Rxg7 Qf5) 31. Nd5 {[%emt 0:01:17]} Bxd5 {[%emt 0:00:53] [#]} 32. Rgxg6+ $1 {[%emt 0:00:32] White mates.} hxg6 {[%emt 0:00:40]} 33. Qxg6+ {[%emt 0:00:03]} Kf8 {[%emt 0:00:37]} 34. Rf6+ {[%emt 0:00:13] Weighted Error Value: White=0.13 (very precise) /Black=0.54.  Mistake:       	White=4     	Black=7      Inaccurate:     	White=1     	Black=5      OK:         	White=9     	Black=4      Best:        	White=6     	Black=1} (34. cxd5 $2 {too greedy.} Qc1+ 35. Kh2 Qf4+ 36. Qg3 Qxg3+ 37. Kxg3 Re3+ 38. Kg4 Re2 $19) 1-0

[Event "2nd Cambridge Open 2024"]
[Site "Cambridge"]
[Date "2024.02.24"]
[Round "8.6"]
[White "York-Weaving, Richard"]
[Black "Willow, Jonah B"]
[Result "0-1"]
[ECO "B40"]
[WhiteElo "2343"]
[BlackElo "2434"]
[Annotator "TA"]
[PlyCount "130"]
[EventDate "2024.02.18"]
[EventType "swiss"]
[EventCountry "ENG"]
[SourceTitle "playchess.com"]
[Source "ChessBase"]
[SourceQuality "1"]
[TimeControl "5400+30"]

{[%evp 9,130,-4,5,8,5,18,0,-16,0,0,17,-22,-8,-11,0,-6,-6,-61,-58,-137,-140,-160,-38,-45,0,0,0,5,33,-183,-193,-202,-169,-192,-187,-214,-179,-237,-222,-400,-398,-339,-358,-380,-342,-575,-577,-568,-586,-586,-545,-548,-502,-596,-596,-608,-573,-760,-652,-643,-647,-920,-616,-887,-855,-830,-1102,-908,-983,-1000,-978,-1018,-959,-1720,-1475,-2592,-1712,-5410,-5910,-29978,-1363,-1375,-1341,-1629,-837,-816,-657,-750,-749,-862,-855,-758,-721,-700,0,-743,-546,-738,-735,-734,-722,-847,-847,-845,-788,-841,-841,-1731,-1794,-1535,-1433,-6095,-4717,-2644,-2357,-29983,-29984,-29984,-29985,-29985,-29986,-29986,-29987]} 1. e4 {[%emt 0:00:04]} c5 {[%emt 0:00:46]} 2. Nf3 {[%emt 0:00:10]} e6 {[%emt 0:00:37]} 3. b3 {[%emt 0:00:37]} a6 {[%emt 0:00:26]} 4. Bb2 {[%emt 0:01:23]} Nc6 {[%emt 0:00:19]} 5. c4 {[%emt 0:00:54]} Nf6 {[%emt 0:00:46]} 6. e5 {[%emt 0:01:42]} Ng4 {[%emt 0:00:14]} 7. h3 {[%emt 0:01:27]} Nh6 {[%emt 0:00:29]} 8. Nc3 {[%emt 0:09:03] The position is equal.} Nf5 {[%emt 0:10:34]} 9. Ne4 {[%emt 0:05:48]} Nfd4 {[%emt 0:03:46]} 10. Nxd4 {[%emt 0:04:27]} cxd4 {[%emt 0:02:00]} 11. f4 {[%emt 0:03:31]} d6 {[%emt 0:06:22]} 12. exd6 {[%emt 0:07:46]} f5 {[%emt 0:04:31]} 13. Ng5 {[%emt 0:10:04]} (13. Nf2 $1 $11) 13... Bxd6 $15 {[%emt 0:03:51]} 14. Qh5+ {[%emt 0:19:47]} ({White should play} 14. g3 $1 $15) 14... g6 $17 {[%emt 0:01:17]} 15. Qe2 {[%emt 0:00:20]} O-O {[%emt 0:07:32]} (15... Bxf4 $17 16. Nxe6 Qh4+ 17. Kd1 Kf7 (17... Be5 18. Bxd4 Bxe6 19. Bxe5 $16) 18. Nxf4 Re8 (18... Qxf4 19. Ba3 $15)) 16. O-O-O {[%emt 0:04:42]} Qa5 {[%emt 0:03:39]} 17. Kb1 {[%emt 0:01:29]} Nb4 $36 {[%emt 0:29:41][%mdl 2048] Black has the initiative.} 18. a3 {[%emt 0:01:05]} (18. Bxd4 $2 Qxa2+ 19. Kc1 Qc2#) 18... Nc6 {[%emt 0:00:04]} 19. c5 $2 {[%emt 0:05:40]} (19. Nxe6 $2 Re8 20. b4 Bxb4 21. axb4 Qxb4 $19) (19. h4 $14 {keeps the upper hand.}) 19... Bxf4 $19 {[%emt 0:04:59]} 20. Nxe6 {[%emt 0:05:54] [#]} Re8 $1 {[%emt 0:00:02]} 21. b4 {[%emt 0:02:48]} Qa4 {[%emt 0:04:52]} (21... Rxe6 22. bxa5 Rxe2 23. Bxe2 $14) 22. Nxf4 {[%emt 0:00:22]} Rxe2 {[%emt 0:00:02]} 23. Bxe2 {[%emt 0:00:07] [#]} a5 $1 {[%emt 0:00:37]} 24. Bc4+ $2 {[%emt 0:05:28]} (24. b5 {might work better.} d3 25. Bxd3 Qxf4 26. bxc6) 24... Kf8 {[%emt 0:00:55]} 25. Nd5 {[%emt 0:01:20]} axb4 {[%emt 0:00:10]} 26. Nb6 {[%emt 0:00:19]} Qa5 {[%emt 0:00:26]} 27. a4 {[%emt 0:05:09]} (27. Nxa8 $2 bxa3 28. Nb6 Qb4 $19 (28... Qxc5 $2 29. Bc1 $19) (28... axb2 $2 29. Kxb2 Qxc5 30. Nxc8 $19)) (27. axb4 Qxb4 28. d3) 27... Qxc5 {[%emt 0:01:51]} 28. Nxa8 {[%emt 0:00:18]} Qxc4 {[%emt 0:00:02]} 29. d3 {[%emt 0:00:30]} Qa6 {[%emt 0:00:42]} 30. Nc7 {[%emt 0:00:05]} Qxa4 {[%emt 0:00:19]} 31. Rhe1 {[%emt 0:01:07]} Bd7 {[%emt 0:01:01]} 32. Nd5 {[%emt 0:00:14] [#]} Be6 $1 {[%emt 0:00:40][%mdl 512]} 33. Nb6 {[%emt 0:01:16]} (33. Nf4 Ba2+) 33... Qa2+ {[%emt 0:02:24]} 34. Kc1 {[%emt 0:00:03]} Na5 {[%emt 0:00:41]} 35. Re2 {[%emt 0:02:02]} Nb3+ {[%emt 0:00:32]} 36. Kc2 {[%emt 0:00:03]} Nc5 {[%emt 0:00:09]} 37. Kc1 {[%emt 0:01:21]} Qa6 {[%emt 0:00:46]} 38. Rxe6 {[%emt 0:00:31]} Nxe6 {[%emt 0:00:09]} 39. Nc4 {[%emt 0:00:22]} Nc5 {[%emt 0:00:56][%cal Oc5d3] aiming for ...Nxd3+!} 40. Ne5 {[%emt 0:00:25]} Qb5 {[%emt 0:01:08]} 41. Kb1 {[%emt 0:00:22]} Na4 {[%emt 0:00:31]} 42. Re1 {[%emt 0:00:17]} Nc3+ {[%emt 0:00:46]} 43. Kc1 {[%emt 0:00:13]} Qd5 {[%emt 0:01:04]} 44. Nf3 {[%emt 0:00:36]} Qc5 {[%emt 0:03:09]} (44... Qa2 $142 45. Nd2 b3 46. Re5 Na4 47. Kd1 Qxb2 (47... Nxb2+ $2 48. Ke2 $19) 48. Nxb3 Qxb3+ 49. Ke1 Nb2 (49... Qxd3 50. Kf2 Nc3 51. Kg1 Qd2 52. h4 Qc1+ 53. Kh2 Qf4+ 54. Kh1 Qxe5 55. h5 Qe1+ 56. Kh2 Ne2 57. g4 Qg3+ 58. Kh1 Qh3#) 50. Kf2 Nxd3+ (50... Qxd3 51. g4 f4 52. Re6 Qg3+ 53. Kf1 f3 54. Rf6+ Ke7 55. Rxf3 Qxf3+ 56. Ke1 Qg2 57. g5 d3 58. h4 Qe2#) 51. Kg1 Nxe5 52. Kf1 d3 53. Kg1 d2 54. Kh2 d1=Q (54... d1=R $2 55. g4 Rd2+ 56. Kh1 Qd1#) 55. g4 Qe2+ 56. Kh1 Qbd1#) 45. Kd2 {[%emt 0:01:11]} Qc7 {[%emt 0:02:08]} 46. Re5 {[%emt 0:00:34]} Nb1+ {[%emt 0:01:18]} 47. Ke1 {[%emt 0:00:31]} Na3 {[%emt 0:01:06]} 48. Kf1 {[%emt 0:00:21]} Nc2 {[%emt 0:00:55] Hoping for ...Ne3+.} 49. Kg1 {[%emt 0:00:14]} Qd6 {[%emt 0:00:53]} 50. Bc1 {[%emt 0:00:30] [#]} Ne3 $1 {[%emt 0:00:54]} 51. Bb2 {[%emt 0:00:04]} Nc2 {[%emt 0:01:44]} 52. Bc1 $1 {[%emt 0:00:04]} g5 {[%emt 0:01:12] White must now prevent ...h6.} 53. Bxg5 {[%emt 0:00:45]} b3 {[%emt 0:00:22]} 54. Rxf5+ {[%emt 0:00:43]} Kg8 {[%emt 0:00:31] ...b2 would now be deadly.} 55. Rf6 {[%emt 0:01:19]} Qc5 {[%emt 0:00:33]} 56. Bh6 {[%emt 0:00:27]} b2 {[%emt 0:00:02]} 57. Nd2 {[%emt 0:00:06]} Na3 {[%emt 0:00:11]} 58. Rf1 {[%emt 0:00:50]} Qc1 {[%emt 0:00:04]} 59. g4 {[%emt 0:00:36]} b5 {[%emt 0:00:22] And now ...Nc2 would win.} 60. g5 {[%emt 0:00:31]} b4 {[%emt 0:01:17]} ({Not} 60... Qxd2 61. Rf8#) (60... b1=R 61. Nxb1 Qxb1 (61... Qe3+ 62. Kg2 $15) 62. Rxb1 Nxb1 63. Kf2 $17) 61. h4 {[%emt 0:00:26] [#]} b3 $1 {[%emt 0:00:37]} 62. h5 {[%emt 0:00:09] [#]} (62. g6 hxg6) 62... Qxf1+ $3 {[%emt 0:00:17][%mdl 512] Black mates.} 63. Kxf1 {[%emt 0:00:04]} b1=Q+ {[%emt 0:00:05]} 64. Nxb1 {[%emt 0:00:07]} Nxb1 {[%emt 0:00:03]} 65. g6 {[%emt 0:01:18]} b2 {[%emt 0:00:18] Weighted Error Value: White=0.65/Black=0.18 (very precise) .  Loses game:     	White=1     	---        Mistake:       	White=4     	Black=1      Inaccurate:     	White=4     	Black=1      OK:         	White=8     	Black=13     Best:        	White=5     	Black=4      Strong:       	---       	Black=2      Brilliant:      	---       	Black=1} 0-1

[Event "2nd Cambridge Open 2024"]
[Site "Cambridge"]
[Date "2024.02.24"]
[Round "8.7"]
[White "Royal, Shreyas"]
[Black "Sowray, Peter J"]
[Result "1/2-1/2"]
[ECO "D35"]
[WhiteElo "2459"]
[BlackElo "2169"]
[Annotator "ChessBase"]
[PlyCount "86"]
[EventDate "2024.02.18"]
[EventType "swiss"]
[EventCountry "ENG"]
[SourceTitle "playchess.com"]
[Source "ChessBase"]
[SourceQuality "1"]
[TimeControl "5400+30"]

1. d4 {[%emt 0:00:22]} d5 {[%emt 0:00:06]} 2. c4 {[%emt 0:00:06]} e6 {[%emt 0:00:04]} 3. Nc3 {[%emt 0:00:22]} Nf6 {[%emt 0:00:07]} 4. cxd5 {[%emt 0:00:15]} exd5 {[%emt 0:00:06]} 5. Bg5 {[%emt 0:00:07]} c6 {[%emt 0:00:09]} 6. e3 {[%emt 0:00:06]} Be7 {[%emt 0:00:19]} 7. Bd3 {[%emt 0:00:24]} Nbd7 {[%emt 0:00:31]} 8. h3 {[%emt 0:01:10]} Nb6 {[%emt 0:00:47]} 9. Nf3 {[%emt 0:01:15]} Nh5 {[%emt 0:03:53]} 10. Bxe7 {[%emt 0:03:09]} Qxe7 {[%emt 0:00:05]} 11. Ne5 {[%emt 0:00:49]} Nf6 {[%emt 0:01:09]} 12. O-O {[%emt 0:03:11]} O-O {[%emt 0:00:52]} 13. f4 {[%emt 0:04:27]} c5 {[%emt 0:06:10]} 14. Qf3 {[%emt 0:02:21]} Bd7 {[%emt 0:12:15]} 15. Rac1 {[%emt 0:07:17]} Bc6 {[%emt 0:06:16]} 16. dxc5 {[%emt 0:03:24]} Nbd7 {[%emt 0:04:56]} 17. Nxd7 {[%emt 0:01:24]} Nxd7 {[%emt 0:02:45]} 18. Nxd5 {[%emt 0:01:07]} Bxd5 {[%emt 0:00:31]} 19. Qxd5 {[%emt 0:00:07]} Qxe3+ {[%emt 0:00:36]} 20. Kh2 {[%emt 0:00:10]} Nxc5 {[%emt 0:02:15]} 21. Bxh7+ {[%emt 0:05:19]} Kxh7 {[%emt 0:00:02]} 22. Qxc5 {[%emt 0:00:09]} Qxc5 {[%emt 0:03:26]} 23. Rxc5 {[%emt 0:00:40]} Rac8 {[%emt 0:00:05]} 24. Rfc1 {[%emt 0:00:09]} Rxc5 {[%emt 0:00:06]} 25. Rxc5 {[%emt 0:00:03]} f6 {[%emt 0:00:13]} 26. Rc7 {[%emt 0:00:12]} Rb8 {[%emt 0:00:08]} 27. f5 {[%emt 0:00:06]} a5 {[%emt 0:03:01]} 28. g4 {[%emt 0:00:05]} b5 {[%emt 0:01:12]} 29. Kg3 {[%emt 0:00:07]} Rd8 {[%emt 0:01:14]} 30. Rc5 {[%emt 0:00:06]} Rd3+ {[%emt 0:00:34]} 31. Kh4 {[%emt 0:00:59]} b4 {[%emt 0:01:20]} 32. Rxa5 {[%emt 0:03:59]} b3 {[%emt 0:00:51]} 33. a3 {[%emt 0:00:12]} Rd2 {[%emt 0:01:46]} 34. Rb5 {[%emt 0:01:32]} Rxb2 {[%emt 0:00:16]} 35. Kh5 {[%emt 0:05:44]} Rb1 {[%emt 0:02:49]} 36. g5 {[%emt 0:32:27]} fxg5 {[%emt 0:04:25]} 37. f6 {[%emt 0:00:13]} gxf6 {[%emt 0:05:14]} 38. Rb7+ {[%emt 0:00:09]} Kg8 {[%emt 0:00:02]} 39. Kg6 {[%emt 0:00:04]} Kf8 {[%emt 0:01:02]} 40. Kxf6 {[%emt 0:00:03]} Kg8 {[%emt 0:02:46]} 41. Kg6 {[%emt 0:01:33]} Kf8 {[%emt 0:00:37]} 42. Kf6 {[%emt 0:00:54]} Kg8 {[%emt 0:00:35]} 43. Kg6 {[%emt 0:00:11]} Kf8 {[%emt 0:00:16]} 1/2-1/2